bitfinex-derivatives/quotes_BTCF0:USTF0_20240815
["timestamp","ask_amount","ask_price","bid_price","bid_amount"]
[1723754076031,0.072282,56899.0,56898.0,0.3778]
[1723754077332,0.002,56899.0,56898.0,0.448083]
[1723754077519,0.00026341,56904.0,56898.0,0.5278]
[1723754077832,0.00026341,56904.0,56903.0,0.3608]
[1723754078416,0.00026341,56904.0,56903.0,0.41325829]
[1723754078624,0.07053941,56904.0,56903.0,0.41325829]
[1723754078935,0.00026341,56904.0,56903.0,0.41325829]
[1723754079233,0.00126341,56904.0,56903.0,0.41325829]
[1723754079431,0.00226341,56904.0,56903.0,0.37633367]
[1723754079726,0.00226341,56904.0,56903.0,0.44638709]
[1723754080026,0.00226341,56904.0,56903.0,0.45238709]
[1723754080234,0.00226341,56904.0,56903.0,0.38233367]
[1723754081134,0.00226341,56904.0,56903.0,0.45261067]
[1723754081333,0.00226341,56904.0,56903.0,0.67316409]
[1723754081927,0.00226341,56904.0,56903.0,0.38233367]
[1723754082725,0.00226341,56904.0,56903.0,0.58485817]
[1723754083830,0.00226341,56904.0,56903.0,0.53233367]
[1723754084933,0.00226341,56904.0,56903.0,0.60261067]
[1723754085123,0.00226341,56904.0,56903.0,0.67266409]
[1723754085326,0.00226341,56904.0,56903.0,0.60261067]
[1723754087923,0.14281541,56904.0,56903.0,0.60235539]
[1723754088236,0.07253941,56904.0,56903.0,0.163]
[1723754090430,0.09253941,56904.0,56903.0,0.013]
[1723754090632,1.01973941,56904.0,56903.0,0.013]
[1723754091135,1.19078329,56904.0,56903.0,0.013]
[1723754091332,0.79078329,56904.0,56903.0,0.013]
[1723754091937,0.070286,56896.0,56894.0,0.05251868]
[1723754092135,0.2125,56895.0,56891.0,0.41331868]
[1723754092439,0.2125,56895.0,56891.0,0.3608]
[1723754092633,0.1513,56894.0,56891.0,0.3608]
[1723754092832,0.221588,56894.0,56891.0,0.3608]
[1723754094241,0.291876,56894.0,56893.0,0.00245973]
[1723754094734,0.291876,56894.0,56893.0,0.00045973]
[1723754095043,0.293876,56894.0,56893.0,0.00945973]
[1723754096129,0.223588,56894.0,56893.0,0.00945973]
[1723754096432,0.072288,56894.0,56893.0,0.00945973]
[1723754097032,0.08062911,56894.0,56893.0,0.00945973]
[1723754098142,0.002,56894.0,56893.0,0.06197841]
[1723754098535,0.002,56894.0,56893.0,0.00945973]
[1723754099539,0.002,56894.0,56893.0,0.00945973]
[1723754100241,0.072288,56894.0,56893.0,0.00945973]
[1723754102038,1.000608,56894.0,56893.0,0.00745973]
[1723754102239,1.293396,56894.0,56893.0,0.00745973]
[1723754102434,1.283396,56894.0,56893.0,0.00745973]
[1723754102745,1.303396,56894.0,56893.0,0.00045973]
[1723754103338,1.213108,56894.0,56893.0,0.00045973]
[1723754103646,1.212108,56894.0,56893.0,0.00045973]
[1723754103833,1.242108,56894.0,56893.0,0.00045973]
[1723754104037,1.241108,56894.0,56893.0,0.00045973]
[1723754104241,1.255108,56894.0,56893.0,0.00145973]
[1723754104653,1.246108,56894.0,56893.0,0.00145973]
[1723754104843,1.254108,56894.0,56893.0,0.00145973]
[1723754105147,1.227108,56894.0,56893.0,0.00145973]
[1723754105345,1.219108,56894.0,56893.0,0.00145973]
[1723754105646,1.228108,56894.0,56893.0,0.00145973]
[1723754105843,0.828108,56894.0,56893.0,0.00145973]
[1723754106047,1.228108,56894.0,56893.0,0.00145973]
[1723754106753,0.828108,56894.0,56893.0,0.00145973]
[1723754106939,1.227108,56894.0,56893.0,0.00145973]
[1723754107446,1.219108,56894.0,56893.0,0.00145973]
[1723754107747,1.227108,56894.0,56893.0,0.00145973]
[1723754107950,0.827108,56894.0,56893.0,0.00145973]
[1723754108146,0.828108,56894.0,56893.0,0.00145973]
[1723754108553,0.300788,56894.0,56893.0,0.00145973]
[1723754108846,0.320788,56894.0,56893.0,0.00145973]
[1723754109242,0.312788,56894.0,56893.0,0.00045973]
[1723754109442,0.317788,56894.0,56893.0,0.00045973]
[1723754109645,0.307788,56894.0,56893.0,0.00045973]
[1723754109846,0.295788,56894.0,56893.0,0.00045973]
[1723754110347,0.291788,56894.0,56893.0,0.00045973]
[1723754110945,0.295788,56894.0,56893.0,0.00045973]
[1723754111143,0.298788,56894.0,56893.0,0.00145973]
[1723754111543,0.294788,56894.0,56893.0,0.00145973]
[1723754112049,0.311788,56894.0,56893.0,0.00045973]
[1723754112245,0.672588,56894.0,56893.0,0.00045973]
[1723754112654,0.672588,56894.0,56886.0,0.05251868]
[1723754112655,0.140594,56887.0,56886.0,0.05251868]
[1723754112844,0.070299,56885.0,56884.0,0.1567]
[1723754114446,0.070299,56885.0,56884.0,0.1587]
[1723754115145,0.070299,56885.0,56884.0,0.1607]
[1723754115655,0.07045891,56885.0,56884.0,0.1607]
[1723754115853,0.07145891,56885.0,56884.0,0.1587]
[1723754116050,0.14175791,56885.0,56884.0,0.1587]
[1723754116348,0.14175791,56885.0,56884.0,0.1567]
[1723754116540,0.14275791,56885.0,56884.0,0.1567]
[1723754116744,0.07245891,56885.0,56884.0,0.1567]
[1723754117353,0.00215991,56885.0,56884.0,0.1567]
[1723754118453,0.00115991,56885.0,56884.0,0.22672172]
[1723754118654,0.00215991,56885.0,56884.0,0.23272172]
[1723754118848,0.05223627,56890.0,56884.0,1.16012172]
[1723754119054,0.00132,56900.0,56893.0,0.070288]
[1723754119251,0.3608,56907.0,56899.0,0.05257988]
[1723754119252,0.05197263,56903.0,56899.0,0.05257988]
[1723754119550,0.070281,56900.0,56897.0,0.07010651]
[1723754119756,0.070281,56900.0,56899.0,0.05258514]
[1723754120150,0.074281,56900.0,56899.0,0.05258514]
[1723754120348,0.074281,56900.0,56896.0,0.22980651]
[1723754120349,0.074281,56900.0,56897.0,0.07010651]
[1723754120649,0.074281,56900.0,56897.0,0.07110651]
[1723754120650,0.070281,56900.0,56897.0,0.07110651]
[1723754121361,0.074281,56900.0,56897.0,0.07010651]
[1723754121555,0.004,56900.0,56897.0,0.07010651]
[1723754121767,0.004,56900.0,56898.0,0.07010651]
[1723754121947,0.05397263,56900.0,56899.0,0.05260042]
[1723754122154,0.002,56900.0,56896.0,0.07010651]
[1723754122450,0.002,56900.0,56899.0,0.05259076]
[1723754122648,0.05212447,56902.0,56899.0,0.05259018]
[1723754122856,0.06078362,56902.0,56899.0,0.05259018]
[1723754123663,0.00026364,56905.0,56900.0,0.3608]
[1723754123664,0.05238811,56905.0,56900.0,0.3608]
[1723754123856,0.05212447,56914.0,56909.0,0.070269]
[1723754124157,0.070259,56918.0,56913.0,0.05252336]
[1723754124659,0.07026,56917.0,56913.0,0.05252336]
[1723754124860,0.3608,56919.0,56912.0,0.05252336]
[1723754125161,0.3608,56914.0,56911.0,0.05252336]
[1723754125357,0.070268,56910.0,56909.0,0.36106364]
[1723754126457,0.072268,56910.0,56909.0,0.00026364]
[1723754127055,0.075268,56910.0,56909.0,0.00026364]
[1723754127361,0.077268,56910.0,56909.0,0.00026364]
[1723754128061,0.081268,56910.0,56909.0,0.00126364]
[1723754128659,0.08384061,56910.0,56909.0,0.00026364]
[1723754128958,0.08984061,56910.0,56909.0,0.00126364]
[1723754129657,0.08984061,56910.0,56909.0,0.36206364]
[1723754129658,0.011,56910.0,56909.0,0.36206364]
[1723754129854,0.011,56910.0,56909.0,0.484857]
[1723754130050,0.00026364,56921.0,56910.0,0.070268]
[1723754130263,0.00026364,56921.0,56920.0,0.070256]
[1723754130455,0.00026364,56921.0,56920.0,0.226656]
[1723754130649,0.2125,56936.0,56920.0,1.29353625]
[1723754130850,0.070239,56934.0,56931.0,0.3608]
[1723754133268,0.084239,56934.0,56931.0,0.3618]
[1723754133760,0.070241,56932.0,56931.0,0.001]
[1723754134455,0.07313957,56932.0,56931.0,0.001]
[1723754134768,0.070241,56932.0,56931.0,0.001]
[1723754135059,0.00289854,56932.0,56927.0,0.07050964]
[1723754135365,0.014,56932.0,56931.0,0.001]
[1723754135666,0.014,56932.0,56931.0,0.002]
[1723754136269,0.014,56932.0,56931.0,0.001]
[1723754136663,0.084241,56932.0,56931.0,0.001]
[1723754136866,0.070243,56931.0,56927.0,0.00904955]
[1723754137054,0.2395,56932.0,56927.0,0.01004955]
[1723754137463,0.070246,56928.0,56927.0,0.01004955]
[1723754137967,0.309741,56932.0,56931.0,0.001]
[1723754138456,0.295741,56932.0,56931.0,0.001]
[1723754138655,0.295741,56932.0,56927.0,0.01004955]
[1723754138656,0.013,56928.0,56927.0,0.01104955]
[1723754139059,0.013,56928.0,56927.0,0.00126364]
[1723754140263,0.014,56928.0,56927.0,0.00126364]
[1723754141064,0.028,56928.0,56927.0,0.00226364]
[1723754144277,0.098246,56928.0,56927.0,0.00226364]
[1723754147270,0.05212447,56943.0,56927.0,0.15226364]
[1723754147462,0.070229,56942.0,56936.0,0.431035]
[1723754147669,0.070229,56942.0,56937.0,0.231435]
[1723754147865,0.1541,56944.0,56937.0,0.1612]
[1723754148172,0.07049764,56938.0,56937.0,0.1612]
[1723754148668,0.00026364,56938.0,56937.0,0.1612]
[1723754148862,0.00626364,56938.0,56937.0,0.1622]
[1723754150167,0.00626364,56938.0,56937.0,0.1632]
[1723754150366,0.00626364,56938.0,56937.0,0.17180589]
[1723754151277,0.00626364,56938.0,56927.0,0.00026364]
[1723754151278,0.070241,56932.0,56931.0,0.05233127]
[1723754151465,0.070241,56932.0,56927.0,0.00026364]
[1723754151660,0.223143,56931.0,56927.0,0.00026364]
[1723754152163,0.070246,56928.0,56927.0,0.00026364]
[1723754152762,0.070246,56928.0,56922.0,0.05233127]
[1723754152763,0.070256,56920.0,56919.0,0.05233127]
[1723754152968,0.070257,56919.0,56918.0,0.3608]
[1723754153169,0.223157,56919.0,56918.0,0.3608]
[1723754153374,0.223157,56919.0,56918.0,0.41320725]
[1723754153572,0.223157,56919.0,56918.0,0.3608]
[1723754154072,0.3618,56928.0,56918.0,0.3608]
[1723754154073,0.001,56928.0,56918.0,0.3608]
[1723754154369,0.00026364,56924.0,56921.0,0.05245008]
[1723754154572,0.00026364,56924.0,56922.0,0.05245008]
[1723754155566,0.00026364,56924.0,56923.0,0.1536]
[1723754155875,0.00026364,56924.0,56923.0,0.20605008]
[1723754156171,0.00026364,56924.0,56923.0,0.1536]
[1723754156471,0.00426364,56924.0,56923.0,0.1536]
[1723754156774,0.00526364,56924.0,56923.0,0.20607523]
[1723754156975,0.00126364,56924.0,56923.0,0.20607685]
[1723754157165,0.00626364,56924.0,56923.0,0.1536]
[1723754157361,0.00626364,56924.0,56920.0,0.06987016]
[1723754157573,0.070254,56922.0,56921.0,0.05250993]
[1723754157967,0.070255,56921.0,56920.0,0.05250993]
[1723754158275,0.070255,56921.0,56918.0,0.06987016]
[1723754159376,0.282757,56919.0,56915.0,0.00052432]
[1723754159672,0.140526,56914.0,56908.0,0.05256614]
[1723754159870,0.140526,56914.0,56905.0,0.05256614]
[1723754159871,0.14342544,56914.0,56905.0,0.05256614]
[1723754160079,1.00028244,56914.0,56904.0,0.05256614]
[1723754160266,1.00028244,56914.0,56905.0,0.05256614]
[1723754160779,0.60028244,56914.0,56907.0,0.05256614]
[1723754160970,0.597383,56914.0,56913.0,0.00626364]
[1723754161272,0.66964581,56914.0,56913.0,0.00626364]
[1723754161466,0.60908865,56914.0,56913.0,0.00626364]
[1723754162467,0.60908865,56914.0,56913.0,0.00026364]
[1723754163277,0.6610416,56914.0,56913.0,0.00026364]
[1723754163472,0.1339216,56914.0,56913.0,0.00026364]
[1723754163871,0.1439216,56914.0,56913.0,0.00026364]
[1723754164063,0.1339216,56914.0,56913.0,0.00026364]
[1723754164269,0.08196865,56914.0,56913.0,0.00026364]
[1723754165374,0.01170565,56914.0,56913.0,0.00026364]
[1723754165772,0.08196865,56914.0,56913.0,0.00026364]
[1723754167178,0.08196865,56914.0,56900.0,0.05256614]
[1723754167372,0.070284,56897.0,56896.0,0.00014729]
[1723754167567,0.50426776,56897.0,56896.0,0.00014729]
[1723754167767,1.43154776,56897.0,56896.0,0.00014729]
[1723754168173,1.36126376,56897.0,56896.0,0.00014729]
[1723754168578,0.44258484,56897.0,56896.0,0.00014729]
[1723754168873,0.44358567,56897.0,56896.0,0.01114729]
[1723754169073,0.01250167,56897.0,56896.0,0.01114729]
[1723754169376,0.01250167,56897.0,56896.0,0.02114729]
[1723754169772,0.44358567,56897.0,56896.0,0.02114729]
[1723754171073,0.08278567,56897.0,56896.0,0.02114729]
[1723754171274,0.01250167,56897.0,56896.0,0.02114729]
[1723754171573,0.00960108,56897.0,56896.0,0.02114729]
[1723754172582,0.001,56897.0,56896.0,0.02114729]
[1723754174181,0.071284,56897.0,56896.0,0.02114729]
[1723754177079,0.07418452,56897.0,56896.0,0.02114729]
[1723754177982,0.14446852,56897.0,56896.0,0.02114729]
[1723754178293,0.15446852,56897.0,56896.0,1e-08]
[1723754178593,0.070291,56892.0,56891.0,0.00026364]
[1723754179192,0.0704747,56892.0,56891.0,0.00026364]
[1723754179392,0.67098636,56892.0,56891.0,0.00026364]
[1723754179579,0.070299,56885.0,56884.0,0.1464]
[1723754179777,0.070299,56885.0,56872.0,0.05240447]
[1723754179778,0.070309,56877.0,56872.0,0.05240447]
[1723754179988,0.070298,56886.0,56873.0,0.1564]
[1723754179989,0.070313,56874.0,56873.0,0.1564]
[1723754180189,0.070315,56872.0,56871.0,0.3608]
[1723754181804,0.071315,56872.0,56871.0,0.3748]
[1723754182707,0.072315,56872.0,56871.0,0.3838]
[1723754183608,1.07015,56872.0,56871.0,0.023]
[1723754183904,0.50343,56872.0,56871.0,0.023]
[1723754184499,1.43095,56872.0,56871.0,0.023]
[1723754185101,1.43975066,56872.0,56871.0,0.023]
[1723754185703,1.45975066,56872.0,56871.0,0.023]
[1723754186304,1.70545066,56872.0,56871.0,0.023]
[1723754186799,1.70445066,56872.0,56871.0,0.009]
[1723754186994,1.70445066,56872.0,56871.0,0.012]
[1723754187201,1.73445066,56872.0,56871.0,0.012]
[1723754187909,1.71845066,56872.0,56871.0,0.009]
[1723754188095,1.70845066,56872.0,56871.0,0.009]
[1723754188302,0.070326,56864.0,56861.0,0.00019819]
[1723754188609,0.0705107,56863.0,56861.0,0.00019819]
[1723754190110,0.0735107,56863.0,56861.0,0.00019819]
[1723754190408,0.070328,56862.0,56861.0,0.00019819]
[1723754192105,0.072328,56862.0,56861.0,0.00019819]
[1723754192306,0.075328,56862.0,56861.0,0.00019819]
[1723754192807,0.072328,56862.0,56861.0,0.00019819]
[1723754193106,0.076328,56862.0,56861.0,0.00019819]
[1723754193506,0.075328,56862.0,56861.0,0.00019819]
[1723754193702,0.140676,56854.0,56853.0,0.1482]
[1723754193906,0.070346,56847.0,56846.0,0.3608]
[1723754194704,0.07049102,56847.0,56846.0,0.3608]
[1723754195503,0.07149102,56847.0,56846.0,0.3718]
[1723754195813,0.07249102,56847.0,56846.0,0.3808]
[1723754197706,0.08123475,56847.0,56846.0,0.3808]
[1723754198111,0.00214502,56847.0,56846.0,0.3808]
[1723754198508,0.07249102,56847.0,56846.0,0.3808]
[1723754199611,0.14283702,56847.0,56846.0,0.02]
[1723754199817,0.14283702,56847.0,56846.0,0.00845865]
[1723754200001,0.14283702,56847.0,56838.0,0.151]
[1723754200002,0.070356,56839.0,56838.0,0.151]
[1723754200203,0.283056,56839.0,56838.0,0.151]
[1723754201208,0.070357,56838.0,56837.0,0.3608]
[1723754201513,0.070365,56833.0,56830.0,0.3608]
[1723754201703,0.070366,56831.0,56830.0,0.3608]
[1723754202014,0.21283901,56831.0,56824.0,0.05240447]
[1723754202202,0.2127,56825.0,56818.0,0.3237]
[1723754202408,0.070376,56824.0,56818.0,0.3237]
[1723754202802,0.070376,56824.0,56822.0,0.3608]
[1723754204212,0.070376,56823.0,56822.0,0.3608]
[1723754204718,0.070376,56823.0,56822.0,0.3638]
[1723754205313,0.01003711,56824.0,56822.0,0.3638]
[1723754205513,0.001,56823.0,56822.0,0.3638]
[1723754206321,0.001,56823.0,56822.0,0.3608]
[1723754206521,0.001,56823.0,56822.0,1.28876]
[1723754206715,0.2127,56843.0,56823.0,0.070375]
[1723754206913,0.3608,56844.0,56835.0,0.431161]
[1723754207113,0.36106389,56836.0,56826.0,0.05240447]
[1723754207313,0.2127,56828.0,56822.0,0.3608]
[1723754207821,0.00022469,56827.0,56822.0,0.3608]
[1723754208829,0.001,56823.0,56822.0,0.3618]
[1723754209710,0.070373,56826.0,56822.0,0.36076]
[1723754210227,0.070373,56826.0,56822.0,0.36176]
[1723754211016,0.070373,56826.0,56822.0,0.36076]
[1723754211320,0.00022469,56827.0,56823.0,0.070376]
[1723754211525,0.00022469,56827.0,56824.0,0.05240447]
[1723754211724,0.00022469,56827.0,56825.0,0.05240447]
[1723754211926,0.00022469,56827.0,56823.0,0.05240447]
[1723754211927,0.07059569,56827.0,56823.0,0.05240447]
[1723754212112,0.00923452,56827.0,56822.0,0.41316447]
[1723754212311,0.00022469,56827.0,56823.0,0.05240447]
[1723754212626,0.00022469,56827.0,56824.0,0.05240447]
[1723754212831,0.00122469,56827.0,56823.0,0.05240447]
[1723754213017,0.00122469,56827.0,56824.0,0.05240447]
[1723754213224,0.070359,56837.0,56824.0,0.21009562]
[1723754213419,0.070359,56837.0,56834.0,0.3608]
[1723754213718,0.00929929,56836.0,56835.0,0.2987]
[1723754213925,0.00026389,56836.0,56835.0,0.4568]
[1723754214421,0.00026389,56836.0,56835.0,0.527161]
[1723754214629,0.070349,56845.0,56835.0,1.81553562]
[1723754214919,0.3212,56848.0,56835.0,1.81553562]
[1723754214920,0.00132,56848.0,56840.0,0.3608]
[1723754215422,0.24636,56849.0,56840.0,0.3608]
[1723754215423,0.070352,56843.0,56840.0,0.3608]
[1723754216019,0.001,56845.0,56842.0,0.05237659]
[1723754216526,0.070349,56846.0,56840.0,0.41317659]
[1723754217117,0.001,56845.0,56842.0,0.004]
[1723754218515,0.070349,56845.0,56842.0,0.05237659]
[1723754218716,0.070349,56845.0,56841.0,0.05237659]
[1723754218918,0.070349,56845.0,56840.0,0.41717659]
[1723754219222,0.070349,56845.0,56842.0,0.002]
[1723754219821,0.070349,56845.0,56841.0,0.05237659]
[1723754220315,0.070352,56843.0,56842.0,0.001]
[1723754220920,0.070352,56843.0,56841.0,0.05237659]
[1723754221122,0.070352,56843.0,56842.0,0.05237659]
[1723754221422,0.070352,56842.0,56841.0,0.001]
[1723754221625,0.218852,56842.0,56841.0,0.001]
[1723754221923,0.070354,56841.0,56840.0,0.41317659]
[1723754222132,0.140708,56841.0,56840.0,0.3608]
[1723754222324,0.140708,56841.0,56836.0,0.07035951]
[1723754222325,0.070357,56838.0,56836.0,0.00026389]
[1723754222523,0.070359,56837.0,56836.0,0.00026389]
[1723754223328,0.07326247,56837.0,56836.0,0.00026389]
[1723754224124,0.00290347,56837.0,56836.0,0.00026389]
[1723754224323,0.009,56837.0,56836.0,0.00026389]
[1723754224529,0.01799401,56837.0,56836.0,0.00026389]
[1723754224725,0.009,56837.0,56836.0,0.00026389]
[1723754224925,0.009,56837.0,56836.0,0.52810389]
[1723754225326,0.009,56837.0,56836.0,0.59846389]
[1723754225527,0.009,56837.0,56836.0,0.07062389]
[1723754225729,0.018,56837.0,56836.0,0.00026389]
[1723754226134,0.088359,56837.0,56836.0,0.00026389]
[1723754226330,0.009,56837.0,56836.0,0.00026389]
[1723754226529,0.019,56837.0,56836.0,0.00026389]
[1723754227234,0.011,56837.0,56836.0,0.00026389]
[1723754227433,0.011,56837.0,56836.0,0.00226389]
[1723754227434,0.003,56837.0,56836.0,0.00226389]
[1723754228024,0.001,56837.0,56836.0,0.00226389]
[1723754228335,0.002,56837.0,56836.0,1.00446389]
[1723754229128,0.001,56837.0,56836.0,1.00446389]
[1723754229432,0.001,56837.0,56836.0,0.60446389]
[1723754229936,0.0090039,56844.0,56838.0,0.070357]
[1723754230233,0.2128,56845.0,56843.0,0.3608]
[1723754230428,0.00290285,56844.0,56843.0,0.3608]
[1723754231134,0.07325285,56844.0,56843.0,0.3608]
[1723754231330,0.07325282,56844.0,56843.0,0.3608]
[1723754232525,0.070351,56843.0,56842.0,0.07007884]
[1723754232734,0.070351,56843.0,56839.0,0.1605]
[1723754232735,0.070355,56840.0,56839.0,0.1605]
[1723754232934,0.07325782,56840.0,56839.0,0.1605]
[1723754234439,0.07425782,56840.0,56839.0,0.1605]
[1723754234636,0.00590282,56840.0,56839.0,0.1605]
[1723754234838,0.00590282,56840.0,56839.0,0.5213]
[1723754235341,0.004,56840.0,56839.0,0.5213]
[1723754235636,0.00690284,56840.0,56839.0,0.5213]
[1723754235841,0.00590284,56840.0,56839.0,0.5213]
[1723754236741,0.00390284,56840.0,56839.0,0.5213]
[1723754236938,0.00490284,56840.0,56839.0,0.5213]
[1723754237436,0.00390284,56840.0,56839.0,0.5233]
[1723754237635,0.00290284,56840.0,56839.0,0.597656]
[1723754237835,0.05195295,56853.0,56840.0,0.52776]
[1723754238043,0.148,56861.0,56852.0,0.43090903]
[1723754238233,0.070331,56860.0,56859.0,0.3608]
[1723754238432,0.070331,56860.0,56859.0,0.43088537]
[1723754238637,0.00880065,56862.0,56859.0,0.43088537]
[1723754238938,0.070326,56864.0,56860.0,0.07008537]
[1723754239236,0.070326,56864.0,56859.0,0.431131]
[1723754239237,0.070326,56864.0,56863.0,0.05252342]
[1723754239438,0.070326,56864.0,56860.0,0.07008537]
[1723754239636,0.00026389,56866.0,56855.0,0.08790018]
[1723754239637,0.2128,56861.0,56858.0,0.07008537]
[1723754239830,0.070331,56859.0,56855.0,0.07034926]
[1723754240142,0.00026389,56866.0,56855.0,0.00026389]
[1723754240143,0.283135,56856.0,56855.0,0.00026389]
[1723754240938,0.283135,56856.0,56855.0,0.05280595]
[1723754241440,0.297135,56856.0,56855.0,0.00026389]
[1723754241640,0.30599947,56856.0,56855.0,0.00026389]
[1723754241940,0.23566447,56856.0,56849.0,0.05254965]
[1723754242139,0.070341,56852.0,56849.0,0.05254965]
[1723754242343,0.070341,56852.0,56848.0,0.05254965]
[1723754242541,0.070341,56852.0,56849.0,0.05254965]
[1723754243128,0.147,56855.0,56850.0,0.05254965]
[1723754243653,0.147,56855.0,56851.0,0.05254965]
[1723754243843,0.007,56852.0,56850.0,0.05254965]
[1723754244042,0.007,56852.0,56851.0,0.3608]
[1723754244242,0.014,56852.0,56851.0,0.431141]
[1723754244542,0.52285295,56863.0,56857.0,0.070333]
[1723754244543,0.47234,56863.0,56857.0,0.070333]
[1723754244744,0.47989527,56863.0,56860.0,0.41336514]
[1723754244942,0.47989527,56863.0,56861.0,0.05256514]
[1723754245244,0.47989527,56863.0,56860.0,0.41336514]
[1723754245740,0.47989527,56863.0,56860.0,0.3608]
[1723754246347,0.070329,56861.0,56860.0,0.3608]
[1723754246745,0.070329,56861.0,56860.0,0.001]
[1723754247135,0.070329,56861.0,56860.0,0.002]
[1723754247354,0.597929,56861.0,56860.0,0.002]
[1723754247842,0.5376,56861.0,56856.0,0.05256514]
[1723754248040,0.093329,56861.0,56860.0,0.001]
[1723754248438,0.620929,56861.0,56860.0,0.001]
[1723754249240,0.620929,56861.0,56855.0,0.05256514]
[1723754249241,0.07033,56860.0,56847.0,0.05251944]
[1723754249540,0.070346,56847.0,56845.0,0.00026389]
[1723754249741,0.52110266,56846.0,56842.0,0.02657908]
[1723754249940,0.2128,56843.0,56830.0,0.07008686]
[1723754250140,0.2128,56835.0,56829.0,0.07008686]
[1723754250349,0.00290266,56834.0,56829.0,0.07008686]
[1723754251140,0.00290266,56834.0,56828.0,0.43088686]
[1723754251339,0.00290266,56834.0,56833.0,0.3608]
[1723754251542,0.00290321,56834.0,56833.0,0.3608]
[1723754252335,0.07326521,56834.0,56833.0,0.3608]
[1723754252541,0.00290321,56834.0,56833.0,0.3608]
[1723754253236,0.00290321,56834.0,56833.0,1.28864]
[1723754253854,0.00690321,56834.0,56833.0,1.359004]
[1723754254439,0.07726521,56834.0,56833.0,0.3608]
[1723754254647,0.08026521,56834.0,56833.0,0.3608]
[1723754255348,0.08026536,56834.0,56833.0,0.3608]
[1723754255739,0.36342736,56834.0,56833.0,0.3608]
[1723754256056,0.41572736,56834.0,56833.0,0.3608]
[1723754256352,0.070369,56829.0,56826.0,0.1481]
[1723754256545,0.00290336,56828.0,56826.0,0.1481]
[1723754256745,0.00290336,56827.0,56826.0,0.1481]
[1723754257049,0.00290336,56827.0,56826.0,0.1570707]
[1723754257445,0.36370336,56827.0,56826.0,0.1570707]
[1723754257645,0.36370336,56827.0,56822.0,0.3608]
[1723754257846,0.070376,56823.0,56822.0,0.3608]
[1723754258047,0.07327936,56823.0,56822.0,0.3608]
[1723754259166,0.070376,56823.0,56822.0,0.3608]
[1723754259354,0.07328003,56823.0,56822.0,0.3608]
[1723754259551,0.07328003,56823.0,56822.0,0.3658]
[1723754260454,0.070378,56822.0,56817.0,0.00021245]
[1723754260650,0.00290403,56821.0,56817.0,0.00021245]
[1723754260852,0.00290403,56820.0,56817.0,0.00021245]
[1723754261557,0.00290403,56819.0,56817.0,0.00021245]
[1723754261856,0.00290403,56818.0,56817.0,0.00021245]
[1723754262750,0.00290403,56818.0,56817.0,0.00121245]
[1723754263451,0.00390401,56818.0,56817.0,0.00921245]
[1723754263855,0.07328601,56818.0,56817.0,0.00221245]
[1723754264054,0.07328601,56818.0,56817.0,0.00321245]
[1723754264660,0.07328602,56818.0,56817.0,0.00321245]
[1723754265055,0.07328609,56818.0,56817.0,0.00321245]
[1723754265357,0.15946078,56821.0,56817.0,0.00321245]
[1723754265558,0.15946078,56821.0,56817.0,0.00121245]
[1723754265765,0.00290402,56820.0,56817.0,0.00221245]
[1723754265958,0.00290402,56819.0,56817.0,0.00221245]
[1723754266155,0.15946078,56821.0,56817.0,0.00221245]
[1723754266351,0.00290408,56820.0,56817.0,0.00221245]
[1723754266568,0.15946078,56821.0,56817.0,0.00221245]
[1723754266755,0.00290404,56820.0,56817.0,0.00221245]
[1723754266956,0.00290404,56819.0,56817.0,0.00221245]
[1723754267261,0.00026389,56825.0,56817.0,0.00221245]
[1723754267464,0.00290393,56824.0,56817.0,0.00121245]
[1723754267665,0.00026389,56825.0,56817.0,0.00221245]
[1723754268168,0.00290389,56824.0,56817.0,0.00221245]
[1723754268356,0.00026389,56825.0,56817.0,0.00221245]
[1723754268566,0.00290391,56824.0,56817.0,0.00221245]
[1723754268761,0.00290391,56823.0,56822.0,0.3608]
[1723754268961,0.009411,56825.0,56822.0,0.5208]
[1723754269165,0.009411,56825.0,56822.0,0.3608]
[1723754269463,0.079785,56825.0,56822.0,0.3608]
[1723754269765,0.00026389,56825.0,56822.0,0.431176]
[1723754270561,0.00026389,56825.0,56822.0,0.581176]
[1723754270768,0.00526389,56825.0,56823.0,0.1611]
[1723754271273,0.01026389,56825.0,56823.0,0.1611]
[1723754271770,0.00526389,56825.0,56823.0,0.1611]
[1723754271959,0.07563789,56825.0,56823.0,0.1651]
[1723754272359,0.07327881,56824.0,56823.0,0.004]
[1723754272774,0.070375,56824.0,56823.0,0.004]
[1723754272963,0.07327893,56824.0,56823.0,0.004]
[1723754273362,0.07327893,56824.0,56823.0,0.006]
[1723754273759,0.07327893,56824.0,56823.0,0.003]
[1723754273961,0.07727893,56824.0,56823.0,0.003]
[1723754274163,0.07727893,56824.0,56822.0,0.3608]
[1723754274164,0.070376,56823.0,56822.0,0.3608]
[1723754274358,0.07327993,56823.0,56822.0,0.3608]
[1723754275464,0.070376,56823.0,56822.0,0.3608]
[1723754275867,0.011,56824.0,56822.0,0.3608]
[1723754276173,0.006,56824.0,56823.0,0.1536]
[1723754276867,0.00026389,56825.0,56822.0,0.3618]
[1723754277065,0.075376,56823.0,56822.0,0.3618]
[1723754277260,0.07827985,56823.0,56822.0,0.3618]
[1723754277460,0.224976,56823.0,56822.0,0.3618]
[1723754277660,0.22287986,56823.0,56822.0,0.3618]
[1723754277865,0.219976,56823.0,56822.0,0.3618]
[1723754278065,0.1496,56823.0,56822.0,0.3618]
[1723754278462,0.219976,56823.0,56822.0,0.3618]
[1723754278873,0.219976,56823.0,56822.0,0.3608]
[1723754279062,0.219976,56823.0,56822.0,0.43085202]
[1723754279462,0.224976,56823.0,56822.0,0.43185202]
[1723754279669,0.229976,56823.0,56822.0,0.43185202]
[1723754280362,0.229976,56823.0,56822.0,0.3618]
[1723754281664,0.229976,56823.0,56822.0,0.43185202]
[1723754281960,0.229976,56823.0,56822.0,0.3618]
[1723754282165,0.229976,56823.0,56822.0,0.43185202]
[1723754282566,0.080376,56823.0,56822.0,0.43185202]
[1723754282865,0.01,56823.0,56822.0,0.3618]
[1723754284168,0.01290384,56823.0,56822.0,0.3618]
[1723754287475,0.01290376,56823.0,56822.0,0.3618]